bitfinex/quotes_ETHUSD_20251218
["timestamp","ask_amount","ask_price","bid_price","bid_amount"]
[1766068505373,0.6284004,2961.5,2959.4,5.0555]
[1766068505374,2.984004,2961.4,2959.4,5.0555]
[1766068505589,2.984004,2961.4,2959.3,0.59]
[1766068505590,0.86988423,2961.6,2959.9,0.46438023]
[1766068505812,0.86988423,2961.6,2959.8,5.0555]
[1766068505813,0.405504,2961.4,2959.5,5.0555]
[1766068505959,3.84197087,2960.7,2959.0,0.001]
[1766068506161,2.5785,2960.3,2959.0,0.001]
[1766068506372,3.37757962,2960.7,2959.0,0.001]
[1766068506373,0.46438023,2960.0,2959.0,0.001]
[1766068506554,0.59,2960.2,2959.0,0.001]
[1766068506994,0.86988423,2960.1,2959.0,0.001]
[1766068507159,2.5785,2960.1,2959.0,0.001]
[1766068507363,0.46438023,2960.4,2959.0,0.001]
[1766068507556,0.59,2960.3,2959.0,0.001]
[1766068507879,0.46438023,2960.1,2959.0,0.001]
[1766068508082,0.46438023,2959.9,2959.0,0.001]
[1766068508295,3.04288023,2959.9,2958.3,0.59]
[1766068508594,3.74157871,2960.1,2956.3,2.41327884]
[1766068508595,2.5785,2959.1,2957.1,3.38162887]
[1766068508798,2.5785,2959.1,2957.1,0.46438023]
[1766068508799,1.05438023,2959.0,2957.1,0.46438023]
[1766068508971,3.04288023,2958.9,2957.1,0.46438023]
[1766068509181,3.04288023,2958.8,2957.0,5.0555]
[1766068509707,1.21308802,2959.0,2957.0,5.0555]
[1766068509708,0.36328802,2959.0,2957.3,5.51988023]
[1766068509881,0.59,2958.9,2957.6,5.51988023]
[1766068510283,3.04288023,2958.8,2957.4,0.59]
[1766068510513,3.04288023,2958.8,2956.9,5.0555]
[1766068510514,0.405504,2958.4,2956.7,0.001]
[1766068510675,0.36328802,2958.7,2957.1,2.5947]
[1766068510877,0.405504,2958.3,2956.7,0.001]
[1766068511104,0.46438023,2958.2,2956.7,0.001]
[1766068511309,2.5785,2958.2,2956.7,0.001]
[1766068511512,0.59,2958.6,2956.7,0.001]
[1766068511672,0.59,2958.6,2957.6,3.38107903]
[1766068511981,0.36328802,2960.1,2957.6,3.38107903]
[1766068511982,0.59,2960.2,2958.6,3.37997701]
[1766068512185,0.59,2960.2,2958.7,0.46438023]
[1766068512386,0.59,2960.2,2959.0,5.90858423]
[1766068512599,0.59,2960.2,2959.0,0.86988423]
[1766068512780,0.59,2960.5,2959.2,5.50308023]
[1766068512982,0.59,2960.5,2959.2,6.35374865]
[1766068513213,0.59,2960.5,2958.5,3.3800861]
[1766068513515,0.59,2960.5,2957.0,0.051]
[1766068513516,2.4936,2959.6,2957.4,0.46438023]
[1766068513727,2.4936,2960.2,2958.3,5.0387]
[1766068514024,2.4936,2960.2,2958.4,5.0387]
[1766068514025,0.589,2959.7,2958.4,5.0387]
[1766068514474,0.405504,2960.4,2958.3,2.5981]
[1766068514475,2.4936,2960.0,2958.3,5.97839612]
[1766068514679,0.46438023,2959.9,2958.4,5.50308023]
[1766068514887,0.589,2959.9,2958.5,7.6368]
[1766068515088,2.4936,2960.5,2958.6,1.61251223]
[1766068515377,1.05338023,2960.4,2958.9,5.0387]
[1766068515724,2.4936,2961.1,2959.1,5.0387]
[1766068515875,0.589,2961.1,2959.9,5.0387]
[1766068516080,0.589,2961.1,2959.2,0.589]
[1766068516081,0.589,2961.1,2959.4,0.46438023]
[1766068516384,0.589,2961.1,2959.3,5.0387]
[1766068516385,0.589,2961.0,2959.3,5.0387]
[1766068516587,0.1319,2960.4,2957.4,2.5981]
[1766068516788,0.10157612,2960.5,2957.5,0.25981]
[1766068516789,0.1163,2959.3,2957.5,0.25981]
[1766068517116,0.1163,2959.3,2957.0,0.001]
[1766068517117,0.589,2959.3,2957.8,0.46438023]
[1766068517320,2.4936,2959.6,2957.9,7.6368]
[1766068517617,2.4936,2959.4,2957.8,5.0387]
[1766068517831,3.27787023,2959.4,2957.8,5.0387]
[1766068518116,3.27787023,2959.4,2957.7,3.38099798]
[1766068518117,0.589,2959.3,2958.0,11.01737747]
[1766068518316,0.589,2959.3,2958.0,5.6277]
[1766068518691,0.589,2959.3,2957.3,3.38140402]
[1766068518692,0.405504,2959.0,2957.3,5.6277]
[1766068518892,0.405504,2958.8,2957.0,2.5991]
[1766068519098,2.95798023,2958.6,2957.0,0.001]
[1766068519292,2.95798023,2958.6,2957.0,0.56387]
[1766068519494,2.95798023,2958.6,2957.1,0.46438023]
[1766068519495,2.4936,2958.6,2957.1,0.46438023]
[1766068519725,0.0855,2959.3,2957.3,2.5981]
[1766068519931,0.589,2959.8,2958.4,0.46438023]
[1766068520087,0.589,2959.8,2958.7,5.0387]
[1766068520286,2.4936,2961.2,2959.1,2.5981]
[1766068520507,2.4936,2961.2,2958.7,1.1422281]
[1766068520508,0.002,2961.4,2960.1,2.5981]
[1766068520708,0.002,2961.4,2960.6,5.0387]
[1766068521024,0.002,2961.4,2960.7,0.589]
[1766068521184,0.002,2961.4,2960.8,0.46438023]
[1766068521518,2.95798023,2962.4,2960.8,5.0387]
[1766068521693,3.01518023,2962.3,2960.2,0.405504]
[1766068522046,0.0423,2962.2,2959.2,5.0387]
[1766068522189,0.0423,2962.2,2959.1,2.5981]
[1766068522190,2.4936,2961.4,2959.4,5.0387]
[1766068522527,9.15713663,2961.9,2958.8,5.0387]
[1766068522528,3.543,2960.7,2958.8,5.0387]
[1766068522687,3.543,2960.7,2958.7,0.589]
[1766068522688,0.0423,2960.5,2958.7,0.589]
[1766068522888,2.4936,2960.1,2958.2,5.6267]
[1766068523184,0.405504,2959.9,2958.4,5.0387]
[1766068523406,0.405504,2959.5,2957.9,5.0387]
[1766068523607,0.0276,2959.5,2957.3,5.0387]
[1766068523831,0.013,2960.2,2957.7,2.5981]
[1766068523996,0.013,2960.2,2956.7,12.43866662]
[1766068523997,0.46438023,2959.3,2957.1,0.588]
[1766068524201,2.4936,2958.6,2956.8,5.0387]
[1766068524510,2.4936,2958.6,2956.7,2.5991]
[1766068524511,0.011,2958.1,2956.7,0.001]
[1766068524712,2.4936,2958.2,2956.4,0.001]
[1766068524713,0.46438023,2957.9,2956.4,0.001]
[1766068524932,2.95798023,2957.7,2956.4,0.001]
[1766068525243,0.29689802,2957.9,2956.4,0.001]
[1766068525534,0.588,2958.1,2956.4,0.589]
[1766068525737,2.95798023,2958.0,2956.4,0.589]
[1766068526033,0.588,2958.1,2956.4,0.001]
[1766068526034,2.4936,2957.7,2956.4,0.001]
[1766068526328,0.46438023,2957.9,2956.4,0.001]
[1766068526329,0.588,2957.9,2956.5,0.588]
[1766068526624,2.4936,2959.0,2956.9,2.5981]
[1766068526831,2.4936,2959.0,2957.4,5.0387]
[1766068526990,0.46438023,2958.9,2957.5,5.6267]
[1766068527414,2.95798023,2958.9,2957.0,0.46438023]
[1766068527618,0.405504,2958.6,2957.0,0.588]
[1766068527818,0.46438023,2958.4,2957.0,0.588]
[1766068528017,0.588,2958.7,2957.3,5.50308023]
[1766068528192,0.588,2958.7,2956.4,5.0397]
[1766068528193,0.405504,2958.5,2956.4,5.0397]
[1766068528393,0.46438023,2958.2,2956.4,0.001]
[1766068528623,2.4936,2957.8,2956.4,0.001]
[1766068529336,1.05138023,2957.7,2956.4,0.001]
[1766068529548,1.05138023,2957.7,2955.8,0.001]
[1766068529549,2.874204,2957.5,2955.8,0.001]
[1766068529828,2.4687,2957.2,2955.9,0.001]
[1766068530033,0.405504,2957.1,2955.9,0.001]
[1766068530242,9.05556051,2958.5,2956.1,5.0387]
[1766068530397,9.05556051,2958.5,2955.9,0.588]
[1766068530398,2.4687,2959.5,2956.8,0.405504]
[1766068530597,2.4687,2959.3,2957.2,7.6368]
[1766068530839,0.86988423,2959.0,2957.2,7.6368]
[1766068531127,2.4687,2959.1,2956.9,0.587]
[1766068531333,0.10157612,2959.5,2956.9,0.587]
[1766068531334,2.4687,2960.1,2957.4,5.0387]
[1766068531520,2.4687,2959.6,2957.5,3.1851]
[1766068531718,2.4687,2959.6,2957.3,0.588]
[1766068531719,1.68367183,2959.5,2957.3,0.588]
[1766068532038,1.68367183,2959.5,2956.4,9.05556051]
[1766068532039,2.4687,2958.6,2956.0,5.0387]
[1766068532231,2.874204,2958.1,2956.2,5.0387]
[1766068532421,0.405504,2957.7,2955.9,0.001]
[1766068532601,0.588,2957.6,2956.0,8.42163803]
[1766068532801,0.588,2957.6,2956.0,13.24507919]
[1766068533032,2.93308023,2957.9,2956.0,9.86212926]
[1766068533236,0.405504,2958.2,2956.4,5.0387]
[1766068533528,2.93308023,2958.0,2956.4,5.0387]
[1766068533754,3.38003675,2958.6,2956.3,2.5981]
[1766068533755,0.21480521,2959.4,2956.5,0.405504]
[1766068534026,3.0557,2959.3,2957.4,2.5981]
[1766068534227,2.4687,2959.3,2957.5,5.0387]
[1766068534430,2.4687,2959.3,2957.1,3.7870856]
[1766068534431,2.4687,2959.0,2957.1,0.46438023]
[1766068534632,2.4687,2958.6,2956.2,6.09008023]
[1766068534802,3.48070955,2959.4,2956.1,3.38280401]
[1766068534803,0.587,2958.5,2957.1,5.0387]
[1766068535000,3.37921086,2959.3,2956.8,3.38192669]
[1766068535001,0.587,2958.4,2956.8,3.38192669]
[1766068535201,0.405504,2958.1,2956.1,5.0387]
[1766068535480,0.405504,2957.5,2955.9,0.001]
[1766068535606,2.4687,2957.2,2955.9,0.001]
[1766068535930,2.4687,2957.1,2955.9,0.001]
[1766068536132,0.24687,2957.0,2955.9,0.001]
[1766068536334,4.09313869,2957.0,2955.9,0.001]
[1766068536536,4.09313869,2957.0,2955.5,0.001]
[1766068536537,2.4677,2956.8,2955.5,0.001]
[1766068536757,0.587,2956.7,2955.9,0.001]
[1766068536937,0.405504,2956.6,2955.5,0.001]
[1766068537123,0.9329204,2956.5,2955.5,0.001]
[1766068537304,2.4667,2956.7,2955.5,0.001]
[1766068537505,0.587,2956.6,2955.5,0.001]
[1766068538004,0.587,2956.6,2955.5,2.5991]
[1766068538205,2.4667,2957.4,2955.6,6.76681552]
[1766068538206,0.587,2956.8,2955.6,6.76681552]
[1766068538526,0.405504,2956.7,2955.5,0.001]
[1766068538705,0.405504,2956.7,2955.1,0.001]
[1766068538706,0.405504,2956.5,2955.1,0.001]
[1766068538911,2.93008023,2956.3,2955.1,0.001]
[1766068539110,2.93008023,2956.3,2954.7,0.001]
[1766068539111,2.870204,2956.0,2954.7,0.001]
[1766068539432,0.587,2955.9,2954.7,0.001]
[1766068539807,0.587,2955.8,2954.7,0.001]
[1766068540024,0.587,2955.9,2954.7,7.6378]
[1766068540240,0.587,2955.9,2954.7,0.001]
[1766068540447,2.92908023,2955.8,2954.1,0.587]
[1766068540625,2.4638,2955.5,2953.5,5.0397]
[1766068540803,1.05138023,2955.4,2954.4,3.38475644]
[1766068541006,1.05138023,2955.4,2953.8,0.46438023]
[1766068541007,0.405504,2955.2,2953.5,5.6267]
[1766068541234,0.587,2955.3,2953.5,5.6267]
[1766068541235,2.4638,2954.9,2953.5,0.001]
[1766068541463,0.405504,2955.7,2953.8,5.0387]
[1766068541743,10.14884979,2956.0,2953.5,0.001]
[1766068541744,0.86988423,2955.2,2953.7,5.0387]
[1766068541928,0.405504,2955.2,2953.5,0.588]
[1766068542109,0.405504,2955.0,2953.5,0.001]
[1766068542311,2.4638,2954.9,2953.5,0.001]
[1766068542531,0.586,2954.8,2953.5,4.529]
[1766068542841,0.586,2954.7,2953.5,4.9937553]
[1766068543275,0.586,2954.7,2953.5,0.001]
[1766068543600,0.46438023,2954.6,2953.5,0.001]
[1766068543771,3.33368423,2954.6,2953.5,0.001]
[1766068544096,3.33368423,2954.6,2952.5,0.586]
[1766068544097,2.4628,2954.5,2952.5,0.586]
[1766068544260,4.25452271,2954.6,2952.5,0.586]
[1766068544261,2.4628,2954.3,2952.6,6.77369098]
[1766068544463,0.10157612,2955.6,2952.6,6.77369098]
[1766068544464,1.66975781,2956.5,2953.1,2.5403]
[1766068544765,0.10357612,2957.6,2952.7,1.23421663]
[1766068544766,2.4628,2956.3,2954.2,0.405504]
[1766068544992,2.4628,2956.3,2954.2,5.519504]
[1766068545277,2.4628,2956.3,2953.2,9.08737055]
[1766068545278,0.86988423,2955.7,2953.1,7.0683]
[1766068545610,0.405504,2954.6,2952.1,7.0683]
[1766068545770,0.405504,2954.6,2952.8,0.03386616]
[1766068545771,3.0488,2954.5,2952.8,0.03386616]
[1766068545972,0.46438023,2954.3,2952.9,0.45618662]
[1766068546171,0.46438023,2954.1,2952.7,4.528]
[1766068546371,0.46438023,2954.1,2952.7,11.30140029]
[1766068546573,0.46438023,2954.1,2952.1,3.85174914]
[1766068546574,2.92718023,2953.9,2952.1,4.528]
[1766068546798,2.92718023,2953.9,2952.2,0.46438023]
[1766068547004,2.4628,2954.4,2952.8,3.38661609]
[1766068547170,0.24628,2954.4,2952.9,4.528]
[1766068547371,0.46438023,2954.1,2952.2,4.528]
[1766068547703,0.405504,2954.2,2951.2,2.5403]
[1766068547704,2.4628,2953.6,2951.2,2.5403]
[1766068547904,0.86988423,2953.2,2951.4,7.91612491]
[1766068548218,0.405504,2953.9,2952.0,4.528]
[1766068548379,6.77002234,2954.2,2952.1,1.04559301]
[1766068548380,2.4628,2953.8,2952.1,1.04559301]
[1766068548581,0.586,2953.7,2952.2,7.0683]
[1766068548802,2.92638023,2954.3,2952.3,4.933504]
[1766068549110,3.0488,2954.2,2952.2,2.5403]
[1766068549265,0.10157612,2954.1,2951.2,3.38835776]
[1766068549466,0.10157612,2954.1,2949.8,2.39229466]
[1766068549467,2.4628,2953.4,2951.3,4.86683578]
[1766068549699,2.4628,2953.2,2951.3,4.478]
[1766068550103,0.992504,2953.3,2951.3,4.478]
[1766068550307,0.10157612,2953.0,2950.0,11.60096413]
[1766068550549,19.34741881,2953.2,2950.0,2.5403]
[1766068550550,4.13509162,2952.4,2950.0,2.5403]
[1766068550671,0.86988423,2952.5,2950.0,2.5403]
[1766068550672,3.33268423,2952.0,2950.1,0.59302054]
[1766068550874,2.4628,2951.9,2950.1,0.59302054]
[1766068551110,0.50049758,2952.3,2950.1,0.59302054]
[1766068551310,0.56595635,2953.1,2950.1,0.59302054]
[1766068551311,0.586,2951.8,2950.5,2.5403]
[1766068551519,2.92718023,2951.7,2950.1,0.586]
[1766068551722,0.405504,2951.4,2950.0,0.001]
[1766068551877,2.4628,2951.5,2950.0,0.001]
[1766068552076,2.868304,2951.4,2950.0,0.001]
[1766068552381,2.868304,2951.4,2948.8,0.001]
[1766068552382,2.4628,2950.6,2948.8,0.001]
[1766068552592,2.4628,2950.3,2948.8,0.001]
[1766068552817,9.08737055,2948.9,2946.4,0.0339111]
[1766068553020,0.405504,2948.5,2946.5,2.5403]
[1766068553318,0.405504,2948.3,2946.9,2.5403]
[1766068553475,0.86988423,2948.5,2946.9,2.57423396]
[1766068553675,0.405504,2948.6,2946.9,2.5403]
[1766068553906,2.867304,2948.6,2946.9,2.5403]
[1766068554089,0.405504,2948.2,2946.4,2.5403]
[1766068554413,2.867304,2948.0,2946.3,0.003]
[1766068554585,0.405504,2947.8,2946.3,0.003]
[1766068554909,0.405504,2947.4,2945.4,3.3951145]
[1766068555110,2.867304,2947.6,2945.0,0.587]
[1766068555111,0.587,2947.7,2946.3,4.528]
[1766068555310,0.46438023,2947.5,2945.8,2.5403]
[1766068555479,2.4618,2948.5,2946.7,4.528]
[1766068555679,0.587,2948.4,2946.8,7.0683]
[1766068555880,3.39097999,2949.0,2946.9,3.24713]
[1766068555881,2.92618023,2949.0,2946.9,3.24713]
[1766068556198,0.587,2948.9,2947.6,4.528]
[1766068556400,2.4618,2949.8,2947.8,4.528]
[1766068556588,2.4618,2949.6,2947.4,6.78561454]
[1766068556789,2.4618,2949.4,2947.4,7.92079375]
[1766068556990,2.4618,2950.2,2947.9,2.5403]
[1766068557312,2.4618,2949.6,2946.9,0.46438023]
[1766068557514,0.405504,2949.3,2947.1,2.5403]
[1766068557690,10.9689876,2950.1,2947.7,4.528]
[1766068557883,0.38840652,2951.3,2947.7,4.528]
[1766068557884,2.4618,2950.9,2948.4,4.528]
[1766068558211,2.4618,2950.7,2948.3,4.528]
[1766068558421,2.4618,2950.7,2947.6,0.588]
[1766068558717,2.4618,2950.7,2947.3,0.46438023]
[1766068558718,2.867304,2949.9,2947.3,0.589]
[1766068558877,0.86988423,2949.7,2947.6,4.528]
[1766068559083,0.86988423,2949.7,2948.9,0.001]
[1766068559084,0.589,2949.6,2948.9,0.001]
[1766068559514,2.4618,2950.5,2948.9,0.001]
[1766068559715,2.4618,2950.5,2949.0,3.39095081]
[1766068559901,0.2868304,2951.3,2949.3,2.5403]
[1766068559902,0.589,2950.4,2949.3,2.5403]
[1766068560101,0.589,2950.7,2949.6,4.528]
[1766068560301,2.4618,2952.6,2950.2,4.99238023]
[1766068560505,2.4618,2952.6,2950.8,4.6951]
[1766068560707,10.40307055,2952.6,2950.4,4.6951]
[1766068561016,10.40307055,2952.6,2950.1,2.387]
[1766068561017,2.4618,2952.4,2950.1,2.387]
[1766068561318,2.4618,2951.4,2949.2,2.387]
[1766068561619,0.405504,2950.9,2949.3,0.28513802]
[1766068561838,2.4618,2950.8,2948.5,2.977]
[1766068562035,0.59,2950.7,2949.3,2.387]
[1766068562241,0.59,2950.7,2949.3,10.47271654]
[1766068562443,0.405504,2950.6,2949.3,4.6951]
[1766068562647,1.05438023,2950.7,2949.3,0.46951]
[1766068562941,1.05438023,2950.7,2949.1,7.0821]
[1766068562942,0.405504,2950.6,2949.1,7.0821]
[1766068563267,0.405504,2950.0,2947.9,7.0821]
[1766068563413,0.405504,2950.0,2946.3,3.39400236]
[1766068563414,2.4608,2949.4,2947.7,0.001]
[1766068563740,0.405504,2949.1,2947.7,0.001]
[1766068564043,0.59,2949.3,2947.7,10.17842644]
[1766068564242,0.46438023,2950.2,2948.4,4.6951]
[1766068564438,0.46438023,2950.2,2948.3,0.46438023]
[1766068564439,0.59,2950.2,2948.6,4.6951]
[1766068564827,2.4608,2951.2,2949.0,4.6951]
[1766068565146,0.29261802,2951.3,2948.6,0.59]
[1766068565147,2.92518023,2951.0,2948.6,0.59]
[1766068565318,2.4608,2950.4,2948.4,4.6951]
[1766068565641,2.4608,2950.4,2947.7,0.001]
[1766068565642,0.405504,2949.4,2947.7,0.001]
[1766068565846,2.4608,2948.9,2946.6,0.59]
[1766068566148,0.46438023,2948.2,2946.0,3.3944252]
[1766068566313,0.405504,2947.9,2946.0,3.3944252]
[1766068566618,0.405504,2947.4,2945.5,0.33951145]
[1766068566818,0.46438023,2947.2,2945.9,3.39450317]
[1766068567017,0.46438023,2947.2,2946.4,0.001]
[1766068567018,0.405504,2947.2,2946.4,0.001]
[1766068567344,0.59,2947.3,2945.3,4.6951]
[1766068567518,0.59,2947.3,2946.2,7.0821]
[1766068567837,2.4598,2947.7,2945.3,4.6951]
[1766068568060,0.56595635,2947.4,2945.3,4.6951]
[1766068568241,6.25849954,2947.1,2945.3,8.09032449]
[1766068568543,2.92418023,2946.9,2945.3,4.6951]
[1766068568711,2.4598,2946.9,2945.2,0.001]
[1766068569057,0.46438023,2946.7,2945.4,2.387]
[1766068569213,2.92418023,2946.5,2945.2,0.001]
[1766068569414,3.30358668,2946.5,2945.2,0.001]
[1766068569659,2.92418023,2946.4,2945.2,0.001]
[1766068569948,2.4881769,2945.2,2942.3,7.35227055]
[1766068570148,2.4881769,2945.2,2942.5,4.6951]
[1766068570149,2.3278,2944.8,2942.5,4.6951]
[1766068570475,4.08704939,2945.1,2942.9,4.6951]
[1766068570476,0.405504,2944.6,2942.9,4.6951]
[1766068570617,2.9178,2945.1,2942.5,2.387]
[1766068570814,0.59,2945.1,2942.7,2.387]
[1766068571041,0.59,2945.1,2943.3,2.387]
[1766068571239,0.405504,2944.9,2943.3,0.03397546]
[1766068571439,2.733304,2944.7,2942.8,4.6951]
[1766068571753,0.10157612,2945.5,2943.0,2.387]
[1766068571754,2.3278,2945.2,2943.0,2.387]
[1766068571958,2.3278,2945.2,2942.4,20.94660746]
[1766068571959,0.405504,2944.9,2942.9,7.0821]
[1766068572125,0.405504,2944.8,2943.0,6.7957866]
[1766068572313,0.86988423,2944.4,2942.9,3.39799188]
[1766068572514,0.86988423,2944.4,2942.2,2.3963]
[1766068572515,2.3278,2944.1,2942.2,2.3963]
[1766068572717,0.10157612,2943.0,2940.8,3.40037015]
[1766068573026,0.10157612,2943.0,2940.7,3.40048274]
[1766068573027,0.591,2942.9,2940.7,3.40048274]
[1766068573239,0.10157612,2943.6,2940.7,3.40048274]
[1766068573240,2.3278,2943.7,2941.6,2.3463]
[1766068573552,0.10157612,2943.1,2941.3,3.3998501]
[1766068573759,0.69257612,2943.8,2940.8,0.34004827]
[1766068573760,0.591,2943.8,2941.4,0.02530967]
[1766068574049,2.3741,2943.5,2941.0,3.40019225]
[1766068574249,1.05538023,2944.7,2942.3,4.5991]
[1766068574558,1.05538023,2944.7,2941.9,30.0]
[1766068574559,2.47567612,2944.1,2942.4,1.19513706]
[1766068574756,2.47567612,2943.9,2941.9,4.5991]
[1766068574917,0.10157612,2945.3,2941.9,4.5991]
[1766068575117,0.10157612,2945.8,2943.8,4.5991]
[1766068575417,0.10157612,2945.7,2943.4,6.9954]
[1766068575633,0.10157612,2945.7,2943.7,4.5991]
[1766068575954,0.10157612,2945.5,2943.7,4.5991]
[1766068576151,0.10157612,2945.2,2943.0,3.39778408]
[1766068576340,0.405504,2944.7,2943.0,4.5991]
[1766068576538,0.405504,2944.3,2942.4,4.5991]
[1766068576739,0.10157612,2944.0,2941.8,3.39920487]
[1766068576951,0.10157612,2944.0,2941.4,0.592]
[1766068576952,0.10157612,2943.8,2941.7,2.3963]
[1766068577255,7.45384667,2944.2,2942.0,4.5991]
[1766068577256,0.46438023,2943.6,2942.0,4.5991]
[1766068577469,0.46438023,2943.6,2941.5,4.6001]
[1766068577470,0.46438023,2943.4,2941.5,4.6001]
[1766068577620,0.405504,2943.6,2941.7,4.5991]
[1766068577819,0.405504,2943.6,2941.5,0.001]
[1766068577820,0.50708012,2943.2,2941.5,0.001]
[1766068578072,2.3704,2942.0,2940.3,0.001]
[1766068578245,0.405504,2941.5,2940.3,0.001]
[1766068578452,0.84019761,2941.9,2940.4,2.3963]
[1766068578756,0.10157612,2942.0,2940.3,0.001]
[1766068578956,0.86988423,2941.3,2940.3,0.001]
[1766068579182,1.46288423,2941.3,2940.3,0.001]
[1766068579356,0.593,2941.3,2940.3,0.001]
[1766068579663,0.10157612,2943.6,2940.3,0.001]
[1766068579664,0.593,2943.2,2941.1,2.3963]
[1766068579964,2.3704,2943.7,2941.9,4.5991]
[1766068580170,2.3704,2943.7,2942.0,3.39904826]
[1766068580383,0.593,2943.8,2942.0,3.39904826]
[1766068580384,0.593,2943.8,2942.3,4.5991]
[1766068580523,0.593,2943.8,2942.6,4.5991]
[1766068580723,0.10157612,2945.0,2941.9,13.5966552]
[1766068580724,2.3704,2945.2,2943.1,2.3963]
[1766068581048,2.3704,2946.3,2944.0,4.5991]
[1766068581249,2.3704,2946.3,2943.4,0.46438023]
[1766068581250,2.3704,2945.7,2943.4,0.46438023]
[1766068581455,2.3704,2945.7,2942.6,10.594]
[1766068581456,0.594,2946.2,2944.2,4.5991]
[1766068581760,1.223,2946.7,2943.5,11.05838023]
[1766068581761,2.3704,2949.0,2946.0,4.5991]
[1766068581929,2.3704,2949.0,2945.9,7.35227055]
[1766068581930,2.3704,2948.4,2946.4,4.5991]
[1766068582123,3.39224532,2947.9,2946.1,1.19513706]
[1766068582341,2.3704,2947.6,2945.7,4.5991]
[1766068582549,0.594,2947.8,2946.1,3.39431523]
[1766068582748,7.35227055,2948.8,2946.1,3.39431523]
[1766068582749,2.3704,2948.9,2946.6,4.5991]
[1766068582947,0.10157612,2949.8,2947.0,2.3963]
[1766068582948,0.594,2949.1,2947.0,2.3963]
[1766068583155,0.594,2949.1,2947.4,4.5991]
[1766068583322,7.45384667,2949.8,2947.4,4.5991]
[1766068583323,0.002,2950.0,2947.9,4.5991]
[1766068583530,0.002,2950.0,2948.4,6.9954]
[1766068583725,0.002,2950.0,2948.6,2.3963]
[1766068583924,0.002,2950.0,2949.0,4.5991]
[1766068584134,0.002,2950.0,2949.0,6.78195998]
[1766068584361,0.002,2950.0,2949.2,4.5991]
[1766068584673,0.002,2950.0,2947.4,3.85263275]
[1766068584674,2.3704,2949.8,2947.8,2.3963]
[1766068584875,2.3704,2949.8,2947.1,0.405504]
[1766068584876,2.3704,2949.5,2947.2,2.3963]
[1766068585040,0.86988423,2949.4,2947.5,4.5991]
[1766068585396,0.86988423,2949.4,2946.5,10.0]
[1766068585397,2.775904,2948.5,2946.2,7.99320625]
[1766068585552,0.405504,2948.3,2946.2,2.3963]
[1766068585885,2.3704,2947.9,2946.1,4.5991]
[1766068586086,0.405504,2947.8,2946.2,4.5991]
[1766068586252,0.405504,2948.2,2946.2,4.5991]
[1766068586453,0.595,2948.4,2946.6,4.5991]
[1766068586642,2.3704,2949.4,2947.2,4.5991]
[1766068586836,2.3704,2949.4,2946.7,0.45991]
[1766068586837,0.69557612,2949.3,2947.1,2.3963]
[1766068587145,2.83478023,2948.8,2946.7,4.5991]
[1766068587347,0.594,2949.3,2946.3,4.5991]
[1766068587569,0.594,2949.3,2946.2,11.21085348]
[1766068587570,2.9644,2949.3,2947.1,2.3963]
[1766068587734,0.63549201,2949.2,2947.4,2.3963]
[1766068587937,0.594,2949.3,2947.7,4.5991]
[1766068588177,0.594,2949.3,2948.1,3.39201519]
[1766068588379,3.38909373,2950.7,2948.1,3.39201519]
[1766068588380,7.35227055,2950.6,2948.5,2.3963]
[1766068588537,2.3704,2951.0,2948.8,2.3963]
[1766068588736,2.3724,2950.0,2947.9,4.5991]
[1766068588934,2.83478023,2949.8,2947.9,4.5991]
[1766068589175,1.05838023,2949.7,2948.0,4.5991]
[1766068589383,0.594,2949.7,2948.3,4.5991]
[1766068589594,0.594,2949.7,2948.7,4.5991]
[1766068589738,2.83478023,2949.6,2947.7,4.5991]
[1766068589937,0.594,2949.7,2948.2,2.3963]
[1766068589938,0.34287802,2949.5,2948.2,2.3963]
[1766068590263,0.594,2949.7,2948.5,4.5991]
[1766068590436,0.002,2950.0,2948.8,4.5991]
[1766068590775,0.002,2950.0,2947.7,2.3963]
[1766068590776,6.78166628,2950.0,2947.7,2.3963]
[1766068590947,6.78166628,2950.0,2947.7,6.9954]
[1766068590948,0.86988423,2949.8,2947.7,6.9954]
[1766068591275,6.78166628,2950.0,2947.7,6.9954]
[1766068591276,0.86988423,2949.6,2947.7,2.3963]
[1766068591478,0.86988423,2949.6,2947.3,0.594]
[1766068591479,0.002,2949.3,2948.0,4.5991]
[1766068591772,0.002,2949.3,2948.5,4.5991]
[1766068592183,0.002,2949.3,2948.5,6.9954]
[1766068592355,0.002,2949.3,2946.4,6.9954]
[1766068592356,2.3704,2949.2,2946.4,6.9954]
[1766068592544,0.002,2949.3,2946.9,4.5991]
[1766068592545,2.3704,2949.0,2946.9,4.5991]
[1766068592856,0.002,2949.3,2947.6,4.5991]
[1766068593056,0.002,2949.3,2946.9,10.0]
[1766068593057,0.50708012,2949.2,2946.9,10.0]
[1766068593380,0.50708012,2949.2,2946.8,7.99260231]
[1766068593381,3.24028423,2948.7,2946.8,7.99260231]
[1766068593580,0.405504,2948.3,2945.7,3.39477883]
[1766068593877,0.594,2948.6,2946.5,2.3963]
[1766068594063,0.594,2948.6,2946.7,6.9954]
[1766068594265,0.594,2948.6,2946.3,2.3963]
[1766068594266,3.9854862,2948.6,2946.3,2.3963]
[1766068594581,0.86988423,2948.5,2947.0,4.5991]
[1766068594741,0.594,2948.6,2947.0,6.9954]
[1766068594945,0.594,2948.6,2947.3,2.3963]
[1766068595145,0.594,2948.6,2946.4,0.405504]
[1766068595146,0.405504,2948.5,2946.7,6.9954]
[1766068595369,0.405504,2948.5,2944.6,4.4307664]